bitfinex/quotes_ETHUSD_20251012
["timestamp","ask_amount","ask_price","bid_price","bid_amount"]
[1760258946210,2.60844963,3833.7,3833.6,0.4461]
[1760258946382,2.60851419,3833.6,3833.5,14.5]
[1760258946745,2.60858185,3833.6,3832.7,0.6336]
[1760258946884,2.60858433,3833.5,3832.9,0.6336]
[1760258947084,2.60858433,3833.5,3833.1,1.92]
[1760258947085,2.60870116,3833.4,3833.1,1.92]
[1760258947286,2.60870116,3833.4,3833.2,0.4461]
[1760258947818,2.60860173,3833.5,3833.2,0.4461]
[1760258948998,2.60866598,3833.4,3833.2,0.4461]
[1760258949292,2.60866598,3833.4,3833.2,2.19607]
[1760258949520,2.60866598,3833.4,3833.3,0.4461]
[1760258951595,2.60865028,3833.4,3833.3,0.4461]
[1760258953227,2.60860255,3833.5,3833.3,0.4461]
[1760258953628,2.60865028,3833.4,3833.3,0.4461]
[1760258954022,2.60878024,3833.3,3833.0,14.5]
[1760258954243,2.60878024,3833.3,3833.1,1.51336]
[1760258954422,2.6086692,3833.4,3833.1,1.51336]
[1760258954622,2.60854717,3833.6,3833.2,0.4461]
[1760258954623,2.60872045,3833.3,3833.2,0.4461]
[1760258955597,0.1304,3833.6,3833.2,0.4461]
[1760258955803,2.60858223,3833.5,3833.2,0.4461]
[1760258956003,2.60865221,3833.4,3833.2,0.4461]
[1760258958423,0.1304,3833.6,3833.3,0.4461]
[1760258958842,2.73893659,3833.6,3833.3,0.4461]
[1760258959338,0.1304,3833.6,3833.3,0.4461]
[1760258959533,2.738962,3833.6,3833.3,0.4461]
[1760258959746,2.60858686,3833.5,3833.3,0.4461]
[1760258961245,0.1304,3833.6,3833.0,14.5]
[1760258961448,0.1304,3833.9,3833.4,0.4461]
[1760258961618,2.73872802,3833.9,3833.4,0.4461]
[1760258961814,2.73873829,3833.9,3833.5,0.4461]
[1760258962043,2.73873829,3833.9,3833.6,0.4461]
[1760258962044,2.6084913,3833.7,3833.6,0.4461]
[1760258962245,2.6084913,3833.7,3833.3,0.1304]
[1760258963045,2.6084913,3833.7,3833.4,0.4461]
[1760258963734,2.73872292,3833.9,3833.4,0.69575]
[1760258963735,0.1304,3833.9,3833.4,0.69575]
[1760258963939,0.1304,3833.9,3833.5,0.4461]
[1760258964555,2.73872498,3833.9,3833.6,14.5]
[1760258964748,2.73872498,3833.9,3833.7,0.4437]
[1760258965325,2.60837811,3833.8,3833.7,0.4437]
[1760258965522,2.60844614,3833.7,3833.4,0.4437]
[1760258965722,2.60851419,3833.6,3833.5,0.4437]
[1760258968157,0.1314,3833.9,3833.5,0.4437]
[1760258968361,2.60850858,3833.7,3833.5,0.4437]
[1760258969061,2.60851419,3833.6,3833.5,0.4437]
[1760258969982,2.60846581,3833.7,3833.5,0.4437]
[1760258970325,0.1314,3833.9,3833.3,0.1304]
[1760258970570,0.1314,3833.9,3833.6,0.4437]
[1760258970763,2.73971067,3833.9,3833.6,0.4437]
[1760258971328,0.001,3833.9,3833.7,0.4437]
[1760258971560,0.001,3833.9,3833.8,2.60837811]
[1760258971767,0.001,3833.9,3833.8,5.16197811]
[1760258971949,0.001,3833.9,3833.8,5.60567811]
[1760258972128,0.001,3835.1,3834.5,2.5536]
[1760258972328,0.001,3835.1,3835.0,0.1306]
[1760258972862,0.001,3835.1,3835.0,0.5743]
[1760258973102,0.001,3835.1,3834.4,0.4437]
[1760258973370,0.001,3835.1,3833.9,1.92]
[1760258973371,2.60803797,3834.3,3834.2,0.5743]
[1760258973570,2.60803797,3834.3,3834.2,0.1306]
[1760258973729,2.60837811,3833.8,3833.7,0.4437]
[1760258974563,2.60808597,3834.3,3833.7,0.4437]
[1760258974761,2.60811186,3834.2,3833.7,0.4437]
[1760258975262,2.60811186,3834.2,3833.8,0.4437]
[1760258975568,2.60811186,3834.2,3833.9,0.4437]
[1760258975734,2.60791271,3834.5,3833.9,0.4437]
[1760258975928,2.60792797,3834.5,3834.0,0.1306]
[1760258976162,5.43850713,3835.0,3834.0,0.1306]
[1760258976370,2.60792176,3834.5,3834.1,0.4437]
[1760258977166,2.60792176,3834.5,3834.0,0.1306]
[1760258977351,2.60792176,3834.5,3834.1,0.4437]
[1760258977760,2.60797388,3834.4,3834.1,0.4437]
[1760258979668,2.60770074,3834.8,3834.0,0.1306]
[1760258979833,2.60776592,3834.7,3834.2,0.4437]
[1760258980165,2.60783508,3834.6,3834.2,0.4437]
[1760258980351,2.60791053,3834.5,3834.2,0.4437]
[1760258980558,2.60791053,3834.5,3834.3,0.4437]
[1760258983176,2.73745688,3834.6,3834.0,0.1306]
[1760258983379,0.1296,3834.6,3834.1,0.4344]
[1760258983582,0.1296,3834.6,3834.2,0.4344]
[1760258983879,2.73744268,3834.6,3834.3,0.4344]
[1760258984075,2.73744268,3834.6,3834.4,0.4344]
[1760258984483,2.73744268,3834.6,3834.5,0.4344]
[1760258984682,2.73744268,3834.6,3834.0,15.065]
[1760258984988,0.001,3835.1,3834.5,0.564]
[1760258985188,0.001,3835.1,3834.7,0.1296]
[1760258985644,0.001,3835.1,3834.8,0.4344]
[1760258986152,2.60852168,3835.1,3834.9,0.4344]
[1760258986370,2.60852168,3835.1,3834.7,0.1296]
[1760258986371,2.60756192,3835.0,3834.7,0.1296]
[1760258986552,2.60756192,3835.0,3834.8,0.4344]
[1760258986752,2.60774244,3834.8,3834.2,0.4344]
[1760258986980,2.60769551,3834.9,3834.4,0.1296]
[1760258987290,2.60790194,3834.5,3834.4,0.1296]
[1760258987490,2.60813493,3834.2,3833.9,0.1324]
[1760258987700,2.60813493,3834.2,3833.9,0.5668]
[1760258987861,2.60804565,3834.3,3834.0,0.4344]
[1760258988068,2.60804565,3834.3,3834.1,0.4344]
[1760258988272,2.60810599,3834.2,3833.9,0.1324]
[1760258988567,2.60824204,3834.0,3833.9,0.4364]
[1760258992929,2.73864204,3834.0,3833.9,0.4364]
[1760258994098,2.73864204,3834.0,3833.9,0.002]
[1760258994306,3.27331736,3834.0,3833.9,0.002]
[1760258994514,2.60851419,3833.6,3833.5,1e-08]
[1760258995593,17.46461125,3833.6,3833.5,1e-08]
[1760258996891,2.60851419,3833.6,3833.5,1e-08]
[1760258997589,7.25634365,3833.6,3833.5,1e-08]
[1760258997764,8.59556239,3833.6,3833.5,1e-08]
[1760258999076,9.06936239,3833.6,3833.5,1e-08]
[1760258999274,10.98936239,3833.6,3833.5,1e-08]
[1760259000881,2.60912672,3832.7,3832.6,0.002]
[1760259001093,7.25709234,3832.5,3832.4,1e-08]
[1760259001268,2.60926288,3832.5,3832.4,1e-08]
[1760259001466,7.73089234,3832.5,3832.4,1e-08]
[1760259002217,9.65089234,3832.5,3832.4,1e-08]
[1760259003608,19.39505963,3832.5,3832.4,1e-08]
[1760259003789,21.66609953,3832.5,3832.4,1e-08]
[1760259004912,21.19229953,3832.5,3832.4,1e-08]
[1760259005112,2.60918346,3832.7,3832.4,0.44530001]
[1760259005287,2.60918371,3832.7,3832.5,0.4453]
[1760259005492,2.73966288,3832.5,3832.4,1e-08]
[1760259006586,2.73966288,3832.5,3832.4,0.44530001]
[1760259007522,2.73966288,3832.5,3832.4,1e-08]
[1760259009539,2.73966288,3832.5,3832.4,0.44530001]
[1760259009895,0.1304,3832.8,3832.4,0.44530001]
[1760259010932,2.73948477,3832.8,3832.4,0.44530001]
[1760259011542,2.60913134,3832.7,3832.4,0.44530001]
[1760259011900,2.73947607,3832.8,3832.4,0.44530001]
[1760259012296,0.1304,3832.8,3832.4,0.44530001]
[1760259012937,0.1304,3832.8,3832.5,14.5]
[1760259013238,0.1304,3832.8,3832.6,1.95834]
[1760259013595,1.92,3833.8,3832.7,0.4453]
[1760259013818,0.001,3834.0,3832.8,14.5]
[1760259014219,2.60885079,3833.2,3832.9,0.4453]
[1760259014456,14.39199675,3833.7,3833.0,0.4453]
[1760259014731,2.60851947,3833.6,3833.0,0.4453]
[1760259015340,2.60859596,3833.5,3833.0,0.94274021]
[1760259015517,2.60851669,3833.6,3833.1,0.4453]
[1760259015718,2.6085887,3833.5,3833.1,0.4453]
[1760259016440,2.60852678,3833.6,3833.1,0.4453]
[1760259017645,2.60847173,3833.7,3833.1,0.4453]
[1760259017846,0.001,3834.0,3833.1,0.80047287]
[1760259018006,0.001,3834.0,3833.1,3.409279]
[1760259018220,2.60926548,3834.0,3833.2,3.0540737]
[1760259018427,2.60926548,3834.0,3833.3,0.4453]
[1760259018776,2.60831877,3833.9,3833.3,0.4453]
[1760259019065,2.60844806,3833.7,3833.3,0.83596868]
[1760259019235,2.60855264,3833.6,3833.1,0.35517287]
[1760259019557,2.60850363,3833.7,3833.4,0.4453]
[1760259019768,2.60853222,3833.6,3833.4,0.4453]
[1760259019920,2.60853222,3833.6,3833.5,0.4453]
[1760259020119,2.60866372,3833.4,3832.1,0.002]
[1760259020335,2.60866372,3833.4,3832.8,0.6336]
[1760259020534,2.60866372,3833.4,3832.9,0.4453]
[1760259020757,2.60859666,3833.5,3833.0,14.5]
[1760259020954,2.60852564,3833.6,3833.1,0.4453]
[1760259021728,2.60861351,3833.5,3833.1,0.4453]
[1760259022338,2.60861351,3833.5,3833.1,2.04007016]
[1760259022540,2.60861351,3833.5,3833.2,0.4453]
[1760259023335,2.6084526,3833.7,3833.2,0.4453]
[1760259023540,2.60860006,3833.5,3833.3,0.4453]
[1760259023735,2.60865028,3833.4,3833.0,0.1304]
[1760259024063,2.6087624,3833.3,3833.1,0.4453]
[1760259024231,2.6087624,3833.3,3833.2,0.4453]
[1760259024431,2.7390606,3833.4,3833.2,0.4453]
[1760259024651,2.7390606,3833.4,3833.3,0.4453]
[1760259025164,0.1304,3833.4,3833.3,0.4453]
[1760259026033,2.73905028,3833.4,3833.3,0.4453]
[1760259027427,4.77786146,3833.4,3833.3,0.4453]
[1760259028574,7.38651174,3833.4,3833.3,0.4453]
[1760259029172,0.1304,3833.4,3833.3,0.4453]
[1760259029376,2.60899058,3832.9,3832.8,0.1304]
[1760259029663,7.97985698,3832.9,3832.4,1e-08]
[1760259029868,11.9041858,3832.5,3832.4,1e-08]
[1760259030237,7.25672434,3832.5,3832.4,1e-08]
[1760259030539,0.78504746,3832.5,3832.4,0.44530001]
[1760259030745,4.64846146,3833.5,3832.4,0.44530001]
[1760259030946,0.001,3833.5,3832.8,0.6336]
[1760259031171,0.001,3833.5,3833.0,0.6336]
[1760259031465,0.001,3833.5,3833.2,0.6336]
[1760259031829,7.25704882,3833.5,3833.3,0.4453]
[1760259032032,7.25704882,3833.5,3833.4,0.4453]
[1760259033679,2.60878782,3833.2,3832.8,1.92]
[1760259033883,2.60878782,3833.2,3833.1,0.4453]
[1760259034283,2.60873137,3833.3,3833.1,0.4453]
[1760259034684,2.60873137,3833.3,3833.2,0.4453]
[1760259036197,2.60879546,3833.2,3832.6,14.5]
[1760259036369,2.60879546,3833.2,3832.7,2.0873]
[1760259036570,4.64746146,3833.1,3832.8,0.4453]
[1760259036772,0.4635,3833.5,3832.4,1e-08]
[1760259036968,0.001,3833.5,3832.5,0.4453]
[1760259037210,0.001,3833.5,3832.7,0.6336]
[1760259037371,2.60963771,3833.5,3832.7,0.6336]
[1760259037568,2.60963771,3833.5,3832.8,0.4453]
[1760259037772,2.60963771,3833.5,3832.9,1.55789]
[1760259037773,2.60865157,3833.4,3832.9,1.55789]
[1760259038006,2.60872418,3833.3,3833.0,0.4453]
[1760259038219,2.60872418,3833.3,3831.4,2.60995405]
[1760259038220,2.609078,3832.8,3832.1,0.1871]
[1760259038421,2.60909777,3832.8,3832.6,0.4453]
[1760259038622,2.60909777,3832.8,3832.7,0.4453]
[1760259039479,2.60909777,3832.8,3832.4,0.57570001]
[1760259039678,2.60912672,3832.7,3832.4,0.13040001]
[1760259039888,2.60912672,3832.7,3832.5,0.4453]
[1760259040224,2.60912672,3832.7,3832.6,0.4453]
[1760259042330,2.60926288,3832.5,3832.4,0.13040001]
[1760259042630,2.6092004,3832.6,3832.5,0.4453]
[1760259044776,0.1304,3833.1,3832.4,0.13040001]
[1760259044980,2.60926288,3832.5,3832.4,1e-08]
[1760259045183,16.98772141,3832.5,3832.4,1e-08]
[1760259047124,2.60926288,3832.5,3832.4,1e-08]
[1760259047327,2.60926288,3832.5,3832.4,0.44530001]
[1760259048582,2.60926288,3832.5,3832.4,1e-08]
[1760259048909,2.60926288,3832.5,3832.4,0.44530001]
[1760259049109,3.05778884,3834.4,3832.4,0.44530001]
[1760259049289,16.98669805,3834.1,3832.5,0.6336]
[1760259049474,1.921,3834.0,3832.5,0.6336]
[1760259049680,2.60958366,3833.5,3832.7,0.6336]
[1760259049907,2.60958366,3833.5,3832.8,0.4453]
[1760259050481,2.60865801,3833.4,3832.8,0.4453]
[1760259050713,2.60959233,3833.5,3832.8,0.4453]
[1760259051012,0.001,3833.5,3832.8,0.4453]
[1760259051313,0.001,3833.5,3832.9,0.14477298]
[1760259051809,0.001,3833.5,3833.0,0.4453]
[1760259052023,2.60960492,3833.5,3833.0,0.4453]
[1760259052387,2.60865787,3833.4,3833.0,0.4453]
[1760259053513,2.60865787,3833.4,3832.9,0.14477298]
[1760259053683,2.60865787,3833.4,3833.1,0.4453]
[1760259053887,2.60865787,3833.4,3833.2,0.4453]
[1760259054117,2.60865787,3833.4,3833.3,0.4453]
[1760259054605,2.60960408,3833.5,3833.3,0.4453]
[1760259054806,2.60960408,3833.5,3833.4,0.441]
[1760259056423,2.60960408,3833.5,3833.0,0.441]
[1760259056588,2.6086516,3833.4,3832.9,0.27517298]
[1760259056787,2.6086516,3833.4,3833.0,0.441]
[1760259056988,2.6086516,3833.4,3833.1,0.441]
[1760259057315,2.6086516,3833.4,3833.0,0.39588957]
[1760259057316,0.001,3833.5,3833.2,0.441]
[1760259057483,0.001,3833.5,3833.2,0.5714]
[1760259057885,0.001,3833.5,3833.3,0.441]
[1760259059599,0.001,3833.5,3833.4,0.441]
[1760259060923,0.001,3833.5,3833.4,0.75902005]
[1760259061622,0.001,3833.5,3833.4,0.441]
[1760259063226,0.001,3833.5,3833.2,0.1304]
[1760259063441,0.001,3833.5,3833.3,0.441]
[1760259063594,0.001,3833.5,3833.4,0.441]
[1760259064228,2.60958223,3833.5,3833.4,0.441]
[1760259064434,0.001,3833.5,3833.4,0.441]
[1760259065207,2.60958223,3833.5,3833.4,0.441]
[1760259066233,2.60866675,3833.4,3833.0,0.1304]
[1760259066532,2.60866675,3833.4,3833.1,0.441]
[1760259066733,2.60866675,3833.4,3833.0,0.1304]
[1760259066929,0.001,3833.5,3833.1,0.441]
[1760259067100,0.001,3833.5,3833.1,0.7590375]
[1760259067426,0.001,3833.5,3833.1,3.36784341]
[1760259067638,0.1014,3833.6,3833.2,0.441]
[1760259068201,2.70992564,3833.6,3833.3,0.441]
[1760259068432,2.70992564,3833.6,3833.4,0.441]
[1760259068595,2.70992564,3833.6,3833.5,0.441]
[1760259068798,2.70992564,3833.6,3833.1,0.3180375]
[1760259068799,2.60861513,3833.5,3833.1,0.3180375]
[1760259069009,0.1014,3833.6,3833.2,0.441]
[1760259069327,0.1014,3833.6,3833.3,0.441]
[1760259069531,2.60859335,3833.5,3833.0,0.1304]
[1760259069831,1.92,3833.7,3832.5,0.441]
[1760259070131,2.60892684,3833.0,3832.5,0.441]
[1760259070341,2.6089943,3832.9,3832.5,0.441]
[1760259070494,2.60910108,3832.8,3832.1,0.1871]
[1760259070695,2.60905865,3832.8,3832.5,0.441]
[1760259070916,2.60905865,3832.8,3832.6,0.441]
[1760259071117,2.60912672,3832.7,3832.6,0.441]
[1760259072957,14.01916734,3833.2,3832.4,0.44100001]
[1760259073135,2.60926288,3832.5,3832.4,1e-08]
[1760259074856,1.92,3833.5,3832.4,0.44100001]
[1760259075030,1.921,3833.9,3832.4,0.44100001]
[1760259075230,2.60906478,3832.8,3832.5,0.30504203]
[1760259075533,2.60906478,3832.8,3832.6,0.441]
[1760259075739,2.60901179,3832.9,3832.4,1e-08]
[1760259076055,2.60901179,3832.9,3832.5,0.441]
[1760259076374,2.6087208,3833.3,3832.6,3.05017197]
[1760259076528,2.60858223,3833.5,3832.8,2.60905843]
[1760259076861,0.001,3833.9,3832.9,0.74600584]
[1760259077155,2.60866777,3833.4,3832.9,0.441]
[1760259077543,2.60853072,3833.6,3832.9,3.04998623]
[1760259077743,2.60853072,3833.6,3833.0,0.441]
[1760259077952,2.60843437,3833.8,3833.0,0.441]
[1760259077953,2.60858784,3833.5,3833.0,0.441]
[1760259078136,0.001,3833.9,3833.0,0.441]
[1760259078322,2.60866015,3833.4,3833.0,0.441]
[1760259078930,2.60860499,3833.5,3833.0,0.441]
[1760259079132,2.60860499,3833.5,3833.1,0.30500537]
[1760259079357,2.60860499,3833.5,3833.2,0.441]
[1760259079743,2.60860499,3833.5,3833.3,0.441]
[1760259079930,2.60850392,3833.7,3833.1,0.30500537]
[1760259079931,2.60865457,3833.4,3833.1,0.30500537]
[1760259080143,2.60865457,3833.4,3833.0,0.002]
[1760259080546,2.60865457,3833.4,3833.1,0.441]
[1760259080745,2.60859169,3833.5,3833.1,0.441]
[1760259081128,2.6086514,3833.4,3833.1,0.441]
[1760259081556,2.60871903,3833.3,3833.2,0.441]
[1760259081763,2.60882699,3833.2,3833.0,0.002]
[1760259082084,2.60882699,3833.2,3833.1,0.441]
[1760259082576,0.001,3833.6,3833.0,0.002]
[1760259082868,4.52885445,3833.1,3833.0,0.002]
[1760259083973,1.92,3833.1,3833.0,0.002]
[1760259084185,1.92,3833.1,3833.0,0.443]
[1760259084476,2.60885445,3833.1,3833.0,0.443]
[1760259084673,0.001,3833.6,3833.0,0.443]
[1760259084846,0.1304,3833.4,3833.0,0.443]
[1760259085053,0.1304,3833.4,3833.1,0.31824567]
[1760259085580,0.1304,3833.4,3833.2,0.4275]
[1760259087787,0.001,3833.6,3833.3,2.60871833]
[1760259087990,0.001,3833.6,3833.3,0.1304]
[1760259088162,0.001,3833.6,3833.5,2.60858223]
[1760259088367,0.001,3833.6,3833.5,3.18609684]
[1760259088561,0.001,3833.6,3833.5,3.61359684]
[1760259088769,0.001,3833.6,3833.5,4.24719684]
[1760259089152,0.001,3833.6,3833.5,4.37759684]
[1760259091701,0.001,3833.6,3833.5,1.76901461]
[1760259091901,0.001,3833.6,3833.5,3.80008223]
[1760259092905,0.001,3833.6,3833.5,1.1915]
[1760259093074,0.001,3833.6,3833.5,3.80008223]
[1760259093690,0.001,3833.6,3833.5,1.1915]
[1760259094195,0.001,3833.6,3833.5,3.80008223]
[1760259094518,0.001,3833.6,3833.5,1.57150822]
[1760259094683,0.001,3833.6,3833.5,1.1915]
[1760259095587,0.001,3833.6,3833.5,3.80008223]
[1760259099936,0.001,3833.6,3833.5,1.1915]
[1760259100294,0.001,3833.6,3833.5,3.80008223]
[1760259104500,0.001,3833.6,3833.5,5.72008223]
[1760259104828,0.001,3833.6,3833.5,6.74496186]
[1760259108230,0.001,3833.6,3833.5,21.24496186]
[1760259110125,1e-08,3835.1,3835.0,3.24116192]
[1760259110325,0.001,3836.1,3835.4,3.24088998]
[1760259110526,0.001,3836.1,3835.8,5.16061809]
[1760259110733,0.001,3836.5,3836.2,0.6336]
[1760259110954,0.001,3836.5,3836.4,3.36681036]
[1760259111356,0.001,3836.5,3836.4,3.80911036]
[1760259111762,0.001,3836.5,3836.4,20.22911036]
[1760259111938,0.001,3836.5,3836.4,22.70469091]
[1760259113736,0.001,3836.5,3836.4,20.78469091]
[1760259114871,0.001,3836.5,3836.4,22.70469091]
[1760259119250,0.001,3836.5,3836.4,22.07109091]
[1760259119444,0.001,3836.5,3836.4,22.70469091]
[1760259120053,0.001,3836.5,3836.4,22.83429091]
[1760259120699,0.001,3836.5,3836.4,18.30768055]
[1760259120988,0.001,3836.5,3836.4,15.1985]
[1760259123483,0.001,3836.5,3836.1,0.4443]
[1760259123684,0.001,3836.5,3836.2,0.4423]
[1760259123985,2.60760434,3836.5,3836.2,0.4423]
[1760259124352,2.60760434,3836.5,3836.3,0.4423]
[1760259124589,2.60760434,3836.5,3836.4,0.4423]
[1760259125884,0.001,3836.5,3836.4,0.4423]
[1760259126457,0.001,3836.5,3836.4,3.04891036]
[1760259126760,0.001,3836.5,3836.4,4.2609358]
[1760259127061,0.001,3836.5,3836.4,6.1809358]
[1760259127268,0.001,3836.5,3836.4,20.6809358]
[1760259130994,0.001,3836.5,3836.4,35.03061596]
[1760259133577,0.001,3836.5,3836.4,35.16021596]
[1760259135103,0.001,3836.9,3836.8,3.23993861]
[1760259135309,0.001,3836.9,3836.8,6.06617464]
[1760259135474,0.001,3836.9,3836.8,6.50847464]
[1760259135876,0.001,3836.9,3836.8,28.16847464]
[1760259136889,0.001,3836.9,3836.8,21.00847464]
[1760259140414,0.001,3836.9,3836.8,19.08847464]
[1760259140577,0.001,3836.9,3836.8,18.45487464]
[1760259140778,0.001,3836.9,3836.8,19.08847464]
[1760259140972,0.001,3836.9,3836.8,18.45487464]
[1760259141217,0.001,3836.9,3836.8,21.00847464]
[1760259143712,0.001,3836.9,3836.8,19.08847464]
[1760259144009,0.001,3836.9,3836.8,21.00847464]
[1760259144374,0.001,3836.9,3836.8,35.3581548]
[1760259145708,0.001,3836.9,3836.8,42.5181548]
[1760259146320,0.001,3836.9,3836.8,46.7581548]
[1760259146625,0.001,3836.9,3836.8,42.5181548]
[1760259146822,0.001,3836.9,3836.8,35.3581548]
[1760259149827,0.001,3837.3,3837.2,3.23966692]
[1760259149991,0.001,3837.3,3837.2,4.0162483]
[1760259150195,0.001,3837.3,3837.2,4.5881483]
[1760259150637,0.001,3837.3,3837.2,19.0881483]
[1760259158833,0.001,3837.3,3837.2,21.0081483]
[1760259160629,0.001,3837.3,3837.2,35.35782846]
[1760259163829,0.001,3837.3,3837.2,21.0081483]
[1760259164928,0.001,3837.3,3837.2,35.35782846]
[1760259166241,0.001,3837.3,3837.2,21.0081483]
[1760259171470,0.001,3837.3,3837.2,25.64292784]
[1760259172078,0.001,3837.3,3837.2,27.08292784]
[1760259172329,0.001,3837.7,3837.6,14.42895436]
[1760259172587,0.001,3837.7,3837.6,16.32443768]
[1760259172738,0.001,3837.7,3837.6,16.75633768]
[1760259173138,0.001,3837.7,3837.6,31.25633768]
[1760259173382,0.001,3837.7,3837.6,32.69633768]
[1760259174071,0.001,3837.7,3837.6,31.25633768]
[1760259175445,0.001,3837.7,3837.6,36.31658681]
[1760259177139,0.001,3837.7,3837.6,21.9867786]
[1760259182197,0.001,3837.7,3837.6,22.1163786]
[1760259188795,0.001,3837.7,3837.6,33.5163786]
[1760259191814,0.001,3838.5,3838.4,2.60525218]
[1760259192010,0.001,3838.5,3838.4,14.94811084]
[1760259192205,0.001,3838.5,3838.4,15.07771084]
[1760259192405,0.001,3838.5,3838.4,15.52001084]
[1760259196744,0.10446278,3838.7,3838.6,7.47571644]
[1760259196947,0.001,3839.6,3839.0,2.60480186]
[1760259197117,0.10446278,3839.5,3839.4,0.1296]
[1760259197317,0.10446278,3839.5,3839.4,0.5719]
[1760259201039,0.10446278,3839.5,3839.4,15.0719]
[1760259202029,0.10446278,3839.5,3839.4,17.67647363]
[1760259202233,0.001,3839.6,3839.5,2.60450579]
[1760259202451,0.001,3839.6,3839.5,3.04680579]
[1760259205961,0.001,3839.6,3839.5,17.54680579]
[1760259208153,0.001,3839.6,3839.5,18.31000579]
[1760259208355,0.001,3839.6,3839.5,20.23000579]
[1760259208552,0.001,3839.6,3839.5,22.12548911]
[1760259215264,0.001,3839.6,3839.5,33.52248911]
[1760259217308,0.001,3839.6,3839.5,22.12548911]
[1760259219036,0.001,3839.6,3839.5,15.0719]
[1760259219589,0.001,3839.6,3839.5,17.67640579]
[1760259221036,0.001,3839.6,3839.5,15.0719]
[1760259221406,0.001,3839.6,3839.5,17.67640579]
[1760259223007,0.10544014,3839.6,3839.5,17.67640579]
[1760259223727,0.10544014,3839.6,3839.5,15.0719]
[1760259224425,0.10544014,3839.6,3839.5,17.67640579]
[1760259226635,0.10544014,3839.6,3839.5,15.0719]
[1760259227599,0.10544014,3839.6,3839.5,17.67640579]
[1760259230859,0.10544014,3839.6,3839.5,19.70451048]
[1760259231230,0.001,3839.6,3839.5,19.70451048]
[1760259235367,0.001,3839.6,3839.5,17.10000469]
[1760259235563,0.001,3839.6,3839.5,17.67640579]
[1760259236066,0.001,3839.6,3839.5,15.0719]
[1760259238369,0.001,3839.6,3839.5,0.5719]
[1760259239074,0.001,3839.6,3838.9,0.4412]
[1760259239261,4.63203894,3839.4,3838.5,0.002]
[1760259239571,4.63203894,3839.4,3838.6,0.4412]
[1760259239776,2.6049792,3838.9,3838.6,0.4412]
[1760259240274,4.63203894,3839.4,3838.6,0.4412]
[1760259240487,2.60504858,3838.7,3838.6,0.4412]
[1760259240634,2.60504858,3838.7,3838.6,14.9412]
[1760259241282,2.60504858,3838.7,3838.6,0.4412]
[1760259243040,3.38858707,3838.8,3838.6,0.4412]
[1760259243454,3.38858707,3838.8,3838.7,0.4412]
[1760259243877,3.38858707,3838.8,3838.5,0.002]
[1760259244182,3.38858707,3838.8,3838.6,0.4412]
[1760259244365,3.38858707,3838.8,3838.5,0.002]
[1760259244676,3.38858707,3838.8,3838.7,0.4412]
[1760259248284,0.7835834,3838.8,3838.7,0.4412]
[1760259248488,0.7835834,3838.8,3838.7,2.60504858]
[1760259248673,0.001,3839.6,3839.5,2.60450579]
[1760259248880,0.001,3839.6,3839.5,7.87014473]
[1760259249075,0.001,3839.6,3839.5,22.49974473]
[1760259249289,0.001,3839.6,3839.5,25.010178]
[1760259249787,0.001,3839.6,3839.5,20.37813906]
[1760259249996,0.001,3839.6,3839.5,14.6296]
[1760259250290,0.001,3839.6,3839.5,14.5]
[1760259250456,0.10545514,3839.6,3839.5,14.5]
[1760259251157,0.10545514,3839.6,3839.3,0.1296]
[1760259251688,2.70989929,3839.6,3839.4,14.5]
[1760259251885,2.60544415,3839.6,3839.4,14.5]
[1760259252094,2.60544415,3839.6,3839.3,0.1296]
[1760259252095,0.001,3839.6,3839.3,0.1296]
[1760259252620,4.63203894,3839.4,3838.5,0.002]
[1760259252901,4.76163894,3839.4,3838.8,0.1296]
[1760259253194,2.60478702,3839.1,3838.8,14.6296]
[1760259253901,4.63203894,3839.1,3838.8,14.6296]
[1760259254090,4.63203894,3839.1,3838.5,0.002]
[1760259254091,2.60504064,3838.8,3838.5,0.002]
[1760259254391,7.23715538,3838.6,3838.5,0.002]
[1760259255482,2.60511644,3838.6,3838.5,0.002]
[1760259257687,3.04621644,3838.6,3838.5,0.002]
[1760259258039,4.96621644,3838.6,3838.5,0.002]
[1760259258187,7.1576367,3838.6,3838.5,0.002]
[1760259260136,6.7165367,3838.6,3838.5,0.002]
[1760259260328,4.96621644,3838.6,3838.5,0.002]
[1760259262285,4.62962589,3838.6,3838.5,0.002]
[1760259262518,5.07072589,3838.6,3838.5,0.002]
[1760259265543,5.70432589,3838.6,3838.5,0.002]
[1760259265743,2.60538794,3838.2,3838.1,1e-08]
[1760259266044,17.6744229,3838.2,3838.1,1e-08]
[1760259266245,18.1114229,3838.2,3838.1,1e-08]
[1760259266462,18.21594846,3838.2,3838.1,1e-08]
[1760259267917,3.87294302,3838.2,3838.1,1e-08]
[1760259269157,5.79294302,3838.2,3838.1,1e-08]
[1760259270445,5.79294302,3838.2,3837.7,0.002]
[1760259270446,2.60565949,3837.8,3837.7,0.002]
[1760259270648,2.60620276,3837.0,3836.9,0.002]
[1760259270846,18.8692082,3837.0,3836.9,0.002]
[1760259271048,4.96320276,3837.0,3836.9,0.002]
[1760259271496,5.06775455,3837.0,3836.9,0.002]
[1760259272678,4.63075455,3837.0,3836.9,0.002]
[1760259272983,5.06775455,3837.0,3836.9,0.002]
[1760259276754,6.29907237,3837.0,3836.9,0.002]
[1760259277457,0.10455179,3837.0,3836.9,0.002]
[1760259277660,2.60601279,3837.3,3836.9,0.002]
[1760259277886,0.437,3837.0,3836.9,0.002]
[1760259278092,9.60250457,3837.0,3836.9,0.002]
[1760259279074,9.707061,3837.0,3836.9,0.002]
[1760259279284,10.93837931,3837.0,3836.9,0.002]
[1760259279685,15.57768112,3837.0,3836.9,0.002]
[1760259279901,15.57768112,3837.0,3836.1,0.002]
[1760259279902,2.60647448,3836.6,3836.5,1e-08]